[Event "Titled Tuesday Blitz December 13 Late 2022"]
[White "Ansh M Shah"]
[Black "Souleidis, Georgios"]
[WhiteFideId "25033379"]
[BlackFideId "4206827"]
[WhiteElo "2415"]
[BlackElo "2642"]
[Result "1/2-1/2"]
[Round "03"]
[TimeControl "180+1"]
[Date "2022.12.14"]
[WhiteClock "0:00:15"]
[BlackClock "0:00:03"]

1. d4 {[%clk 0:02:58]}  Nf6 {[%clk 0:02:57]} 2. c4 {[%clk 0:02:59]}  g6 {[%clk 0:02:57]} 3. h4 {[%clk 0:02:56]}  c5 {[%clk 0:02:56]} 4. d5 {[%clk 0:02:55]}  Bg7 {[%clk 0:02:56]} 5. Nc3 {[%clk 0:02:55]}  d6 {[%clk 0:02:56]} 6. e4 {[%clk 0:02:56]}  O-O {[%clk 0:02:56]} 7. Be2 {[%clk 0:02:57]}  e6 {[%clk 0:02:57]} 8. h5 {[%clk 0:02:56]}  exd5 {[%clk 0:02:57]} 9. exd5 {[%clk 0:02:57]}  Re8 {[%clk 0:02:57]} 10. Kf1 {[%clk 0:02:57]}  Nbd7 {[%clk 0:02:56]} 11. h6 {[%clk 0:02:57]}  Bh8 {[%clk 0:02:55]} 12. Nf3 {[%clk 0:02:58]}  Ne5 {[%clk 0:02:45]} 13. Nxe5 {[%clk 0:02:57]}  Rxe5 {[%clk 0:02:46]} 14. Bf4 {[%clk 0:02:57]}  Re8 {[%clk 0:02:33]} 15. Bf3 {[%clk 0:02:48]}  a6 {[%clk 0:02:31]} 16. a4 {[%clk 0:02:48]}  b6 {[%clk 0:02:13]} 17. g3 {[%clk 0:02:33]}  Bf5 {[%clk 0:02:02]} 18. Kg2 {[%clk 0:02:25]}  Ne4 {[%clk 0:01:58]} 19. Nxe4 {[%clk 0:02:24]}  Bxe4 {[%clk 0:01:58]} 20. Bxe4 {[%clk 0:02:12]}  Rxe4 {[%clk 0:01:58]} 21. Qc2 {[%clk 0:02:13]}  Re8 {[%clk 0:01:17]} 22. Rhe1 {[%clk 0:02:10]}  Qd7 {[%clk 0:01:18]} 23. Rxe8+ {[%clk 0:01:44]}  Rxe8 {[%clk 0:01:17]} 24. Ra3 {[%clk 0:01:44]}  Bd4 {[%clk 0:01:09]} 25. Rf3 {[%clk 0:01:32]}  f6 {[%clk 0:00:55]} 26. Qb3 {[%clk 0:01:20]}  g5 {[%clk 0:00:37]} 27. Be3 {[%clk 0:01:15]}  Be5 {[%clk 0:00:29]} 28. Bd2 {[%clk 0:01:00]}  Rb8 {[%clk 0:00:26]} 29. Bc3 {[%clk 0:00:58]}  Qe7 {[%clk 0:00:13]} 30. Bxe5 {[%clk 0:00:55]}  fxe5 {[%clk 0:00:12]} 31. Qe3 {[%clk 0:00:53]}  Rf8 {[%clk 0:00:10]} 32. Rxf8+ {[%clk 0:00:44]}  Kxf8 {[%clk 0:00:11]} 33. Qf3+ {[%clk 0:00:41]}  Ke8 {[%clk 0:00:10]} 34. Qg4 {[%clk 0:00:38]}  Kf7 {[%clk 0:00:09]} 35. Qf5+ {[%clk 0:00:37]}  Qf6 {[%clk 0:00:09]} 36. Qxh7+ {[%clk 0:00:38]}  Kf8 {[%clk 0:00:10]} 37. Qc7 {[%clk 0:00:22]}  Qxh6 {[%clk 0:00:10]} 38. Qxb6 {[%clk 0:00:22]}  g4 {[%clk 0:00:10]} 39. Qxa6 {[%clk 0:00:22]}  Qg6 {[%clk 0:00:05]} 40. Qc8+ {[%clk 0:00:20]}  Kg7 {[%clk 0:00:04]} 41. Qd7+ {[%clk 0:00:20]}  Kh8 {[%clk 0:00:04]} 42. Qd8+ {[%clk 0:00:18]}  Kg7 {[%clk 0:00:04]} 43. Qe7+ {[%clk 0:00:18]}  Kh8 {[%clk 0:00:04]} 44. Qf8+ {[%clk 0:00:18]}  Kh7 {[%clk 0:00:04]} 45. a5 {[%clk 0:00:17]}  Qe4+ {[%clk 0:00:04]} 46. Kh2 {[%clk 0:00:17]}  Qxc4 {[%clk 0:00:03]} 47. Qxd6 {[%clk 0:00:18]}  Qe2 {[%clk 0:00:02]} 48. Qe7+ {[%clk 0:00:16]}  Kg6 {[%clk 0:00:03]} 49. Qe6+ {[%clk 0:00:16]}  Kg7 {[%clk 0:00:03]} 50. Qe7+ {[%clk 0:00:15]}  Kg6 {[%clk 0:00:04]} 51. Kg1 {[%clk 0:00:14]}  Qe1+ {[%clk 0:00:03]} 52. Kg2 {[%clk 0:00:14]}  Qe4+ {[%clk 0:00:03]} 53. Kh2 {[%clk 0:00:15]}  Qe2 {[%clk 0:00:03]} 1/2-1/2


[Site "https://www.chess.com"]

[Event "Titled Tuesday Blitz December 13 Late 2022"]
[White "Bernat, David"]
[Black "Joubert, Dantelle"]
[WhiteFideId "2099225"]
[BlackFideId "14310813"]
[WhiteElo "2303"]
[BlackElo "1507"]
[Result "1-0"]
[Round "03"]
[TimeControl "180+1"]
[Date "2022.12.14"]
[WhiteClock "0:00:51"]
[BlackClock "0:00:01"]

1. c4 {[%clk 0:03:00]}  c6 {[%clk 0:02:58]} 2. e4 {[%clk 0:03:00]}  d5 {[%clk 0:02:56]} 3. cxd5 {[%clk 0:03:01]}  cxd5 {[%clk 0:02:56]} 4. exd5 {[%clk 0:03:02]}  Nf6 {[%clk 0:02:54]} 5. Nc3 {[%clk 0:03:03]}  g6 {[%clk 0:02:52]} 6. Bc4 {[%clk 0:03:03]}  Bg7 {[%clk 0:02:52]} 7. d3 {[%clk 0:03:03]}  O-O {[%clk 0:02:51]} 8. Nf3 {[%clk 0:03:04]}  Nbd7 {[%clk 0:02:49]} 9. O-O {[%clk 0:03:04]}  Nb6 {[%clk 0:02:44]} 10. Qb3 {[%clk 0:03:04]}  Bd7 {[%clk 0:02:04]} 11. a4 {[%clk 0:02:54]}  Nc8 {[%clk 0:01:29]} 12. Bf4 {[%clk 0:02:44]}  b6 {[%clk 0:01:27]} 13. Rfe1 {[%clk 0:02:18]}  Nd6 {[%clk 0:01:26]} 14. Bxd6 {[%clk 0:02:16]}  exd6 {[%clk 0:01:25]} 15. Ne4 {[%clk 0:02:11]}  Bf5 {[%clk 0:01:22]} 16. Qb4 {[%clk 0:02:06]}  Bg4 {[%clk 0:01:05]} 17. Nfd2 {[%clk 0:01:51]}  Ne8 {[%clk 0:01:01]} 18. a5 {[%clk 0:01:43]}  Rb8 {[%clk 0:00:56]} 19. a6 {[%clk 0:01:40]}  f5 {[%clk 0:00:45]} 20. Ng3 {[%clk 0:01:34]}  Bd4 {[%clk 0:00:39]} 21. h3 {[%clk 0:01:30]}  Bh5 {[%clk 0:00:32]} 22. Nxh5 {[%clk 0:01:30]}  gxh5 {[%clk 0:00:31]} 23. Nf3 {[%clk 0:01:31]}  Bg7 {[%clk 0:00:23]} 24. Bb5 {[%clk 0:01:28]}  Nf6 {[%clk 0:00:20]} 25. Re6 {[%clk 0:01:25]}  Rc8 {[%clk 0:00:09]} 26. Rxd6 {[%clk 0:01:09]}  Qe7 {[%clk 0:00:08]} 27. Re1 {[%clk 0:01:06]}  Qc7 {[%clk 0:00:06]} 28. Rc6 {[%clk 0:01:02]}  Qd8 {[%clk 0:00:03]} 29. d6 {[%clk 0:00:56]}  Kh8 {[%clk 0:00:01]} 30. Rxc8 {[%clk 0:00:52]}  Qxc8 {[%clk 0:00:01]} 31. Re7 {[%clk 0:00:51]} 1-0


[Site "https://www.chess.com"]

[Event "Titled Tuesday Blitz December 13 Late 2022"]
[White "Bettalli, Francesco"]
[Black "Annaberdiyev, Babageldi"]
[WhiteFideId "2816453"]
[BlackFideId "14000385"]
[WhiteElo "2448"]
[BlackElo "2685"]
[Result "1/2-1/2"]
[Round "03"]
[TimeControl "180+1"]
[Date "2022.12.14"]
[WhiteClock "0:01:14"]
[BlackClock "0:00:20"]

1. d4 {[%clk 0:03:00]}  e6 {[%clk 0:03:00]} 2. Nc3 {[%clk 0:03:00]}  d5 {[%clk 0:02:59]} 3. e4 {[%clk 0:03:00]}  Nf6 {[%clk 0:02:56]} 4. e5 {[%clk 0:02:59]}  Nfd7 {[%clk 0:02:51]} 5. Nce2 {[%clk 0:02:59]}  c5 {[%clk 0:02:49]} 6. c3 {[%clk 0:03:00]}  Nc6 {[%clk 0:02:48]} 7. f4 {[%clk 0:03:00]}  Be7 {[%clk 0:02:30]} 8. Nf3 {[%clk 0:03:00]}  O-O {[%clk 0:02:27]} 9. Be3 {[%clk 0:02:55]}  a6 {[%clk 0:02:23]} 10. g3 {[%clk 0:02:55]}  b5 {[%clk 0:02:20]} 11. Bg2 {[%clk 0:02:56]}  b4 {[%clk 0:02:13]} 12. h4 {[%clk 0:02:56]}  bxc3 {[%clk 0:02:11]} 13. bxc3 {[%clk 0:02:57]}  Na5 {[%clk 0:02:08]} 14. Kf2 {[%clk 0:02:54]}  Nc4 {[%clk 0:02:06]} 15. Qd3 {[%clk 0:02:55]}  f5 {[%clk 0:02:02]} 16. exf6 {[%clk 0:02:54]}  Nxf6 {[%clk 0:02:01]} 17. Ne5 {[%clk 0:02:49]}  Nxe5 {[%clk 0:01:55]} 18. dxe5 {[%clk 0:02:50]}  Ng4+ {[%clk 0:01:51]} 19. Kg1 {[%clk 0:02:50]}  a5 {[%clk 0:01:43]} 20. Qd2 {[%clk 0:02:43]}  Rb8 {[%clk 0:01:33]} 21. Bf3 {[%clk 0:02:41]}  Nxe5 {[%clk 0:01:25]} 22. Bxd5 {[%clk 0:02:29]}  Qxd5 {[%clk 0:01:15]} 23. Qxd5 {[%clk 0:02:28]}  exd5 {[%clk 0:01:16]} 24. fxe5 {[%clk 0:02:28]}  Rf3 {[%clk 0:01:17]} 25. Bf4 {[%clk 0:02:25]}  Bg4 {[%clk 0:01:05]} 26. Re1 {[%clk 0:02:14]}  Rb2 {[%clk 0:01:04]} 27. a4 {[%clk 0:02:10]}  Rxe2 {[%clk 0:00:47]} 28. Rxe2 {[%clk 0:02:11]}  Rxf4 {[%clk 0:00:47]} 29. Rd2 {[%clk 0:02:11]}  Rxa4 {[%clk 0:00:36]} 30. Kf2 {[%clk 0:02:10]}  Bf5 {[%clk 0:00:26]} 31. Ke3 {[%clk 0:01:58]}  Be4 {[%clk 0:00:26]} 32. Rf1 {[%clk 0:01:56]}  Rc4 {[%clk 0:00:25]} 33. Rb2 {[%clk 0:01:56]}  Rxc3+ {[%clk 0:00:25]} 34. Kd2 {[%clk 0:01:56]}  Rd3+ {[%clk 0:00:26]} 35. Ke2 {[%clk 0:01:56]}  h5 {[%clk 0:00:21]} 36. Rb7 {[%clk 0:01:56]}  Rxg3 {[%clk 0:00:16]} 37. Rxe7 {[%clk 0:01:55]}  Bd3+ {[%clk 0:00:16]} 38. Kf2 {[%clk 0:01:55]}  Rg4 {[%clk 0:00:17]} 39. Rd1 {[%clk 0:01:55]}  Be4 {[%clk 0:00:17]} 40. Rc7 {[%clk 0:01:53]}  Rxh4 {[%clk 0:00:18]} 41. Rxc5 {[%clk 0:01:51]}  Rf4+ {[%clk 0:00:18]} 42. Ke3 {[%clk 0:01:52]}  Rf5 {[%clk 0:00:19]} 43. Kd4 {[%clk 0:01:46]}  Kf7 {[%clk 0:00:19]} 44. Rc7+ {[%clk 0:01:46]}  Ke6 {[%clk 0:00:20]} 45. Rc6+ {[%clk 0:01:47]}  Ke7 {[%clk 0:00:20]} 46. Rdc1 {[%clk 0:01:39]}  Rf3 {[%clk 0:00:20]} 47. Rc7+ {[%clk 0:01:39]}  Ke6 {[%clk 0:00:20]} 48. R1c6+ {[%clk 0:01:39]}  Kf5 {[%clk 0:00:21]} 49. Rf7+ {[%clk 0:01:40]}  Kg5 {[%clk 0:00:19]} 50. Rxf3 {[%clk 0:01:39]}  Bxf3 {[%clk 0:00:20]} 51. Rc7 {[%clk 0:01:37]}  g6 {[%clk 0:00:19]} 52. Rf7 {[%clk 0:01:37]}  Bg4 {[%clk 0:00:18]} 53. Kxd5 {[%clk 0:01:36]}  h4 {[%clk 0:00:19]} 54. Rh7 {[%clk 0:01:34]}  a4 {[%clk 0:00:18]} 55. Kc4 {[%clk 0:01:29]}  h3 {[%clk 0:00:17]} 56. Kb4 {[%clk 0:01:28]}  Kf5 {[%clk 0:00:17]} 57. Re7 {[%clk 0:01:20]}  h2 {[%clk 0:00:16]} 58. Rh7 {[%clk 0:01:20]}  Kxe5 {[%clk 0:00:17]} 59. Rxh2 {[%clk 0:01:20]}  Kf4 {[%clk 0:00:18]} 60. Kxa4 {[%clk 0:01:19]}  Bf5 {[%clk 0:00:19]} 61. Rh6 {[%clk 0:01:19]}  g5 {[%clk 0:00:20]} 62. Rh1 {[%clk 0:01:17]}  g4 {[%clk 0:00:21]} 63. Rg1 {[%clk 0:01:18]}  g3 {[%clk 0:00:21]} 64. Kb4 {[%clk 0:01:18]}  Be4 {[%clk 0:00:20]} 65. Kc3 {[%clk 0:01:18]}  g2 {[%clk 0:00:19]} 66. Kd2 {[%clk 0:01:17]}  Kg3 {[%clk 0:00:19]} 67. Ke1 {[%clk 0:01:18]}  Bf3 {[%clk 0:00:19]} 68. Kd2 {[%clk 0:01:16]}  Kf2 {[%clk 0:00:20]} 69. Rxg2+ {[%clk 0:01:14]}  Bxg2 {[%clk 0:00:20]} 1/2-1/2


[Site "https://www.chess.com"]

[Event "Titled Tuesday Blitz December 13 Late 2022"]
[White "Bogaudinov, Rushan"]
[Black "Goroshkov, Maksym"]
[WhiteFideId "4129288"]
[BlackFideId "14142716"]
[WhiteElo "2405"]
[BlackElo "2620"]
[Result "1-0"]
[Round "03"]
[TimeControl "180+1"]
[Date "2022.12.14"]
[WhiteClock "0:00:14"]
[BlackClock "0:00:26"]

1. a3 {[%clk 0:02:59]}  a6 {[%clk 0:02:59]} 2. g3 {[%clk 0:02:58]}  g6 {[%clk 0:02:58]} 3. Bg2 {[%clk 0:02:57]}  Bg7 {[%clk 0:02:58]} 4. d4 {[%clk 0:02:58]}  d5 {[%clk 0:02:58]} 5. c4 {[%clk 0:02:53]}  dxc4 {[%clk 0:02:57]} 6. e3 {[%clk 0:02:54]}  Nf6 {[%clk 0:02:56]} 7. Nd2 {[%clk 0:02:50]}  Be6 {[%clk 0:02:53]} 8. Qc2 {[%clk 0:02:48]}  c6 {[%clk 0:02:48]} 9. Nxc4 {[%clk 0:02:48]}  O-O {[%clk 0:02:48]} 10. Nf3 {[%clk 0:02:45]}  Nbd7 {[%clk 0:02:42]} 11. b4 {[%clk 0:02:45]}  Bxc4 {[%clk 0:02:32]} 12. Qxc4 {[%clk 0:02:43]}  a5 {[%clk 0:02:33]} 13. bxa5 {[%clk 0:02:33]}  Qxa5+ {[%clk 0:02:30]} 14. Bd2 {[%clk 0:02:33]}  Qd5 {[%clk 0:02:26]} 15. Qxd5 {[%clk 0:02:29]}  Nxd5 {[%clk 0:02:27]} 16. O-O {[%clk 0:02:29]}  Ra4 {[%clk 0:02:27]} 17. Rfb1 {[%clk 0:02:26]}  b5 {[%clk 0:02:22]} 18. Ne1 {[%clk 0:02:16]}  N7b6 {[%clk 0:02:21]} 19. Nc2 {[%clk 0:02:11]}  e6 {[%clk 0:02:16]} 20. Nb4 {[%clk 0:02:04]}  Nc4 {[%clk 0:02:14]} 21. Nxd5 {[%clk 0:01:50]}  exd5 {[%clk 0:02:07]} 22. Bb4 {[%clk 0:01:50]}  Rfa8 {[%clk 0:02:06]} 23. Rc1 {[%clk 0:01:46]}  Bf8 {[%clk 0:02:04]} 24. Rab1 {[%clk 0:01:45]}  f5 {[%clk 0:01:50]} 25. h4 {[%clk 0:01:37]}  R4a6 {[%clk 0:01:41]} 26. Rb3 {[%clk 0:01:29]}  Nxa3 {[%clk 0:01:34]} 27. Bxa3 {[%clk 0:01:26]}  Bxa3 {[%clk 0:01:33]} 28. Rxc6 {[%clk 0:01:21]}  b4 {[%clk 0:00:56]} 29. Bxd5+ {[%clk 0:01:17]}  Kh8 {[%clk 0:00:55]} 30. Rxa6 {[%clk 0:01:06]}  Rxa6 {[%clk 0:00:56]} 31. Kf1 {[%clk 0:01:00]}  Rd6 {[%clk 0:00:52]} 32. Bf3 {[%clk 0:00:57]}  Rd8 {[%clk 0:00:47]} 33. g4 {[%clk 0:00:45]}  Kg7 {[%clk 0:00:43]} 34. g5 {[%clk 0:00:41]}  Rc8 {[%clk 0:00:42]} 35. Be2 {[%clk 0:00:34]}  Rc1+ {[%clk 0:00:39]} 36. Kg2 {[%clk 0:00:34]}  Rc2 {[%clk 0:00:37]} 37. Kf3 {[%clk 0:00:32]}  Kf7 {[%clk 0:00:26]} 38. Bb5 {[%clk 0:00:28]}  Ke6 {[%clk 0:00:20]} 39. Ba4 {[%clk 0:00:24]}  Kd5 {[%clk 0:00:20]} 40. Rxa3 {[%clk 0:00:20]}  bxa3 {[%clk 0:00:13]} 41. Bxc2 {[%clk 0:00:19]}  Kc4 {[%clk 0:00:14]} 42. Bb1 {[%clk 0:00:14]}  Kb3 {[%clk 0:00:13]} 43. d5 {[%clk 0:00:15]}  Kb2 {[%clk 0:00:14]} 44. d6 {[%clk 0:00:14]}  Kxb1 {[%clk 0:00:14]} 45. d7 {[%clk 0:00:14]}  a2 {[%clk 0:00:15]} 46. d8=Q {[%clk 0:00:14]}  a1=Q {[%clk 0:00:16]} 47. Qd1+ {[%clk 0:00:14]}  Kb2 {[%clk 0:00:16]} 48. Qxa1+ {[%clk 0:00:15]}  Kxa1 {[%clk 0:00:17]} 49. Kf4 {[%clk 0:00:15]}  Kb2 {[%clk 0:00:17]} 50. Ke5 {[%clk 0:00:15]}  Kc3 {[%clk 0:00:17]} 51. Kf6 {[%clk 0:00:15]}  Kd3 {[%clk 0:00:18]} 52. Kg7 {[%clk 0:00:16]}  Ke2 {[%clk 0:00:18]} 53. Kxh7 {[%clk 0:00:16]}  Kxf2 {[%clk 0:00:19]} 54. Kxg6 {[%clk 0:00:17]}  Kxe3 {[%clk 0:00:19]} 55. Kxf5 {[%clk 0:00:17]}  Kf3 {[%clk 0:00:20]} 56. h5 {[%clk 0:00:17]}  Ke3 {[%clk 0:00:21]} 57. h6 {[%clk 0:00:17]}  Kd3 {[%clk 0:00:21]} 58. h7 {[%clk 0:00:18]}  Kd4 {[%clk 0:00:22]} 59. h8=Q+ {[%clk 0:00:18]}  Kc4 {[%clk 0:00:23]} 60. g6 {[%clk 0:00:18]}  Kd5 {[%clk 0:00:24]} 61. g7 {[%clk 0:00:19]}  Kd6 {[%clk 0:00:25]} 62. g8=Q {[%clk 0:00:18]}  Kc7 {[%clk 0:00:26]} 63. Qd5 {[%clk 0:00:16]}  Kb6 {[%clk 0:00:25]} 64. Qb2+ {[%clk 0:00:14]}  Kc7 {[%clk 0:00:26]} 65. Qbb7# {[%clk 0:00:14]} 1-0


[Site "https://www.chess.com"]

[Event "Titled Tuesday Blitz December 13 Late 2022"]
[White "Bortnyk, Mykola"]
[Black "Kim, Sergey"]
[WhiteFideId "14120836"]
[BlackFideId "13700570"]
[WhiteElo "2582"]
[BlackElo "2607"]
[Result "0-1"]
[Round "03"]
[TimeControl "180+1"]
[Date "2022.12.13"]
[WhiteClock "0:00:01"]
[BlackClock "0:00:02"]

1. e4 {[%clk 0:03:00]}  e5 {[%clk 0:02:59]} 2. Nf3 {[%clk 0:03:00]}  Nc6 {[%clk 0:03:00]} 3. Bb5 {[%clk 0:03:00]}  a6 {[%clk 0:03:00]} 4. Ba4 {[%clk 0:03:01]}  Nf6 {[%clk 0:03:00]} 5. Qe2 {[%clk 0:03:00]}  b5 {[%clk 0:03:00]} 6. Bb3 {[%clk 0:03:00]}  Bc5 {[%clk 0:03:01]} 7. a4 {[%clk 0:02:59]}  Rb8 {[%clk 0:02:59]} 8. axb5 {[%clk 0:02:57]}  axb5 {[%clk 0:02:59]} 9. Nc3 {[%clk 0:02:57]}  O-O {[%clk 0:02:40]} 10. Nxb5 {[%clk 0:02:39]}  d6 {[%clk 0:02:28]} 11. h3 {[%clk 0:02:37]}  Nh5 {[%clk 0:02:25]} 12. g3 {[%clk 0:02:22]}  Be6 {[%clk 0:02:13]} 13. Ba4 {[%clk 0:02:06]}  Ra8 {[%clk 0:01:53]} 14. b3 {[%clk 0:01:33]}  Nb4 {[%clk 0:01:39]} 15. Na3 {[%clk 0:01:26]}  Qf6 {[%clk 0:01:22]} 16. d3 {[%clk 0:01:19]}  h6 {[%clk 0:01:21]} 17. Be3 {[%clk 0:01:08]}  Bxe3 {[%clk 0:01:14]} 18. Qxe3 {[%clk 0:01:09]}  Bd7 {[%clk 0:01:08]} 19. Bxd7 {[%clk 0:00:57]}  Rxa3 {[%clk 0:01:07]} 20. Kd2 {[%clk 0:00:58]}  Rfa8 {[%clk 0:00:54]} 21. Rxa3 {[%clk 0:00:56]}  Rxa3 {[%clk 0:00:53]} 22. Bg4 {[%clk 0:00:57]}  Qg6 {[%clk 0:00:49]} 23. Bxh5 {[%clk 0:00:54]}  Qxh5 {[%clk 0:00:48]} 24. g4 {[%clk 0:00:52]}  Qg6 {[%clk 0:00:48]} 25. g5 {[%clk 0:00:52]}  h5 {[%clk 0:00:44]} 26. Rc1 {[%clk 0:00:49]}  Qe6 {[%clk 0:00:40]} 27. h4 {[%clk 0:00:47]}  g6 {[%clk 0:00:39]} 28. d4 {[%clk 0:00:41]}  exd4 {[%clk 0:00:23]} 29. Qxd4 {[%clk 0:00:41]}  c5 {[%clk 0:00:23]} 30. Qe3 {[%clk 0:00:40]}  Ra2 {[%clk 0:00:22]} 31. Kd1 {[%clk 0:00:39]}  Qg4 {[%clk 0:00:21]} 32. c3 {[%clk 0:00:28]}  Nc6 {[%clk 0:00:16]} 33. Rc2 {[%clk 0:00:19]}  Ra1+ {[%clk 0:00:16]} 34. Kd2 {[%clk 0:00:17]}  Ne5 {[%clk 0:00:14]} 35. c4 {[%clk 0:00:06]}  Nxf3+ {[%clk 0:00:13]} 36. Kc3 {[%clk 0:00:07]}  Nd4 {[%clk 0:00:12]} 37. Rd2 {[%clk 0:00:07]}  Qg1 {[%clk 0:00:08]} 38. Rb2 {[%clk 0:00:02]}  Rc1+ {[%clk 0:00:06]} 39. Kd3 {[%clk 0:00:03]}  Qf1+ {[%clk 0:00:04]} 40. Re2 {[%clk 0:00:03]}  Rd1+ {[%clk 0:00:02]} 41. Kc3 {[%clk 0:00:02]}  Nxe2+ {[%clk 0:00:02]} 42. Kb2 {[%clk 0:00:01]}  Nd4 {[%clk 0:00:02]} 0-1


[Site "https://www.chess.com"]

[Event "Titled Tuesday Blitz December 13 Late 2022"]
[White "Bortnyk, Olexandr"]
[Black "Tatarinov, Dmitry"]
[WhiteFideId "14120828"]
[BlackFideId "24160067"]
[WhiteElo "2723"]
[BlackElo "2326"]
[Result "1-0"]
[Round "03"]
[TimeControl "180+1"]
[Date "2022.12.13"]
[WhiteClock "0:00:07"]
[BlackClock "0:00:13"]

1. c4 {[%clk 0:02:52]}  c5 {[%clk 0:02:58]} 2. Nc3 {[%clk 0:02:52]}  g6 {[%clk 0:02:58]} 3. e3 {[%clk 0:02:53]}  Nf6 {[%clk 0:02:57]} 4. g4 {[%clk 0:02:52]}  d6 {[%clk 0:02:54]} 5. g5 {[%clk 0:02:53]}  Nfd7 {[%clk 0:02:55]} 6. d4 {[%clk 0:02:35]}  Bg7 {[%clk 0:02:53]} 7. h4 {[%clk 0:02:34]}  Nc6 {[%clk 0:02:48]} 8. d5 {[%clk 0:02:34]}  Bxc3+ {[%clk 0:02:47]} 9. bxc3 {[%clk 0:02:34]}  Na5 {[%clk 0:02:45]} 10. f4 {[%clk 0:02:33]}  Nb6 {[%clk 0:02:45]} 11. h5 {[%clk 0:02:26]}  Rg8 {[%clk 0:02:38]} 12. hxg6 {[%clk 0:02:25]}  hxg6 {[%clk 0:02:38]} 13. Rh7 {[%clk 0:02:11]}  e6 {[%clk 0:02:34]} 14. e4 {[%clk 0:02:08]}  Qe7 {[%clk 0:02:29]} 15. Kf2 {[%clk 0:01:59]}  Bd7 {[%clk 0:02:27]} 16. Bd3 {[%clk 0:01:57]}  O-O-O {[%clk 0:02:27]} 17. Qf1 {[%clk 0:01:56]}  Rh8 {[%clk 0:02:26]} 18. Rxh8 {[%clk 0:01:56]}  Rxh8 {[%clk 0:02:26]} 19. Nf3 {[%clk 0:01:54]}  f6 {[%clk 0:02:18]} 20. gxf6 {[%clk 0:01:49]}  Qxf6 {[%clk 0:02:18]} 21. e5 {[%clk 0:01:50]}  dxe5 {[%clk 0:02:17]} 22. fxe5 {[%clk 0:01:51]}  Qf7 {[%clk 0:02:14]} 23. Qg2 {[%clk 0:01:41]}  exd5 {[%clk 0:02:08]} 24. Qxg6 {[%clk 0:01:40]}  Qxg6 {[%clk 0:01:54]} 25. Bxg6 {[%clk 0:01:41]}  Nbxc4 {[%clk 0:01:45]} 26. Bg5 {[%clk 0:01:41]}  Nc6 {[%clk 0:01:42]} 27. Bf6 {[%clk 0:01:40]}  Rh6 {[%clk 0:01:37]} 28. Bf7 {[%clk 0:01:38]}  Bg4 {[%clk 0:01:16]} 29. Bxd5 {[%clk 0:01:27]}  N4xe5 {[%clk 0:01:10]} 30. Bxe5 {[%clk 0:01:16]}  Bxf3 {[%clk 0:01:08]} 31. Bf4 {[%clk 0:01:16]}  Bxd5 {[%clk 0:00:49]} 32. Bxh6 {[%clk 0:01:16]}  b6 {[%clk 0:00:49]} 33. Bf4 {[%clk 0:01:09]}  Kb7 {[%clk 0:00:49]} 34. a3 {[%clk 0:01:07]}  Ka6 {[%clk 0:00:49]} 35. Rd1 {[%clk 0:01:07]}  Bb3 {[%clk 0:00:46]} 36. Rd7 {[%clk 0:01:06]}  Kb5 {[%clk 0:00:46]} 37. Rc7 {[%clk 0:01:04]}  Bd5 {[%clk 0:00:46]} 38. Ke3 {[%clk 0:00:56]}  a6 {[%clk 0:00:42]} 39. Kd3 {[%clk 0:00:55]}  Na5 {[%clk 0:00:41]} 40. Rd7 {[%clk 0:00:51]}  Bc6 {[%clk 0:00:40]} 41. Rd6 {[%clk 0:00:51]}  Bg2 {[%clk 0:00:25]} 42. Rh6 {[%clk 0:00:35]}  Bf1+ {[%clk 0:00:23]} 43. Kc2 {[%clk 0:00:35]}  Nc4 {[%clk 0:00:23]} 44. Kb3 {[%clk 0:00:36]}  Be2 {[%clk 0:00:21]} 45. a4+ {[%clk 0:00:34]}  Ka5 {[%clk 0:00:21]} 46. Bc7 {[%clk 0:00:35]}  Nd2+ {[%clk 0:00:18]} 47. Kc2 {[%clk 0:00:27]}  Nc4 {[%clk 0:00:19]} 48. Rh2 {[%clk 0:00:22]}  Bf3 {[%clk 0:00:18]} 49. Rh4 {[%clk 0:00:18]}  Bd5 {[%clk 0:00:18]} 50. Kb3 {[%clk 0:00:10]}  Nd6+ {[%clk 0:00:13]} 51. Kc2 {[%clk 0:00:10]}  Nc4 {[%clk 0:00:13]} 52. Rh6 {[%clk 0:00:08]}  Be4+ {[%clk 0:00:14]} 53. Kb3 {[%clk 0:00:08]}  Bd5 {[%clk 0:00:14]} 54. Rh5 {[%clk 0:00:07]}  Bf7 {[%clk 0:00:13]} 55. Rxc5# {[%clk 0:00:07]} 1-0


[Site "https://www.chess.com"]

[Event "Titled Tuesday Blitz December 13 Late 2022"]
[White "Boruchovsky, Avital"]
[Black "Estrada Nieto, Julian"]
[WhiteFideId "2800055"]
[BlackFideId "5101018"]
[WhiteElo "2813"]
[BlackElo "2531"]
[Result "1-0"]
[Round "03"]
[TimeControl "180+1"]
[Date "2022.12.14"]
[WhiteClock "0:01:40"]
[BlackClock "0:00:13"]

1. c4 {[%clk 0:02:57]}  e5 {[%clk 0:02:59]} 2. Nc3 {[%clk 0:02:57]}  Nf6 {[%clk 0:02:59]} 3. Nf3 {[%clk 0:02:57]}  Nc6 {[%clk 0:02:59]} 4. e3 {[%clk 0:02:56]}  Bb4 {[%clk 0:02:58]} 5. Qc2 {[%clk 0:02:53]}  Bxc3 {[%clk 0:02:58]} 6. bxc3 {[%clk 0:02:51]}  e4 {[%clk 0:02:53]} 7. Ng5 {[%clk 0:02:45]}  Qe7 {[%clk 0:02:51]} 8. f3 {[%clk 0:02:45]}  exf3 {[%clk 0:02:48]} 9. Nxf3 {[%clk 0:02:46]}  d6 {[%clk 0:02:46]} 10. Be2 {[%clk 0:02:40]}  O-O {[%clk 0:02:38]} 11. O-O {[%clk 0:02:38]}  Bg4 {[%clk 0:02:38]} 12. h3 {[%clk 0:02:26]}  Bh5 {[%clk 0:02:37]} 13. d3 {[%clk 0:02:27]}  Ne5 {[%clk 0:02:28]} 14. Nd4 {[%clk 0:02:26]}  Bg6 {[%clk 0:02:18]} 15. e4 {[%clk 0:02:25]}  Nfd7 {[%clk 0:02:14]} 16. Rb1 {[%clk 0:02:22]}  b6 {[%clk 0:02:02]} 17. Nf5 {[%clk 0:02:21]}  Bxf5 {[%clk 0:02:02]} 18. Rxf5 {[%clk 0:02:22]}  g6 {[%clk 0:01:58]} 19. Rf2 {[%clk 0:02:20]}  f6 {[%clk 0:01:58]} 20. Bh6 {[%clk 0:02:17]}  Rf7 {[%clk 0:01:57]} 21. d4 {[%clk 0:02:11]}  Nc6 {[%clk 0:01:53]} 22. Rbf1 {[%clk 0:02:08]}  Re8 {[%clk 0:01:50]} 23. Bd3 {[%clk 0:02:08]}  Kh8 {[%clk 0:01:34]} 24. c5 {[%clk 0:02:01]}  bxc5 {[%clk 0:01:29]} 25. Bc4 {[%clk 0:02:01]}  cxd4 {[%clk 0:01:17]} 26. Bxf7 {[%clk 0:02:00]}  Qxf7 {[%clk 0:01:17]} 27. cxd4 {[%clk 0:02:00]}  Nxd4 {[%clk 0:01:12]} 28. Qxc7 {[%clk 0:02:00]}  Ne5 {[%clk 0:01:03]} 29. Qxd6 {[%clk 0:01:42]}  Qd7 {[%clk 0:00:13]} 30. Qxf6+ {[%clk 0:01:40]} 1-0


[Site "https://www.chess.com"]